fUSD/lending_fUSD_20250512
["ID","MTS","AMOUNT","RATE_DAILY","PERIOD"]
[360811383,1747035044107,-456.61008827,0.00013698,2]
[360811384,1747035044117,-400.0,0.00013698,2]
[360811385,1747035044126,-489.89755374,0.00013698,2]
[360811386,1747035044135,-400.0,0.00013698,2]
[360811387,1747035044145,-400.0,0.00013698,2]
[360811388,1747035044155,-400.0,0.00013698,2]
[360811389,1747035044164,-400.0,0.00013698,2]
[360811390,1747035044174,-431.6883041,0.00013698,2]
[360811391,1747035044183,-400.0,0.00013698,2]
[360811392,1747035044193,-400.0,0.00013698,2]
[360811393,1747035044203,-400.0,0.00013698,2]
[360811394,1747035044212,-455.8257991,0.00013698,2]
[360811395,1747035044222,-511.7671318,0.00013698,2]
[360811396,1747035044231,-400.0,0.00013698,2]
[360811397,1747035044241,-400.0,0.00013698,2]
[360811398,1747035044250,-400.0,0.00013698,2]
[360811399,1747035044263,-400.0,0.00013698,2]
[360811400,1747035044273,-400.0,0.00013698,2]
[360811401,1747035044283,-400.0,0.00013698,2]
[360811402,1747035044293,-400.0,0.00013698,2]
[360811403,1747035044302,-481.91299856,0.00013698,2]
[360811404,1747035044312,-400.0,0.00013698,2]
[360811405,1747035044321,-163.91414173,0.00013698,2]
[360811406,1747035044331,-400.0,0.00013698,2]
[360811407,1747035044341,-400.0,0.00013698,2]
[360811408,1747035044353,-400.0,0.00013698,2]
[360811409,1747035044363,-400.0,0.00013698,2]
[360811410,1747035044373,-400.0,0.00013698,2]
[360811411,1747035044383,-400.0,0.00013698,2]
[360811412,1747035044394,-179.67069485,0.00013698,2]
[360811413,1747035044403,-400.0,0.00013698,2]
[360811414,1747035044413,-205.84192024,0.00013698,2]
[360811415,1747035044424,-400.0,0.00013698,2]
[360811416,1747035044434,-400.0,0.00013698,2]
[360811417,1747035044444,-963.99,0.00013698,2]
[360811418,1747035044454,-400.0,0.00013698,2]
[360811419,1747035044463,-963.99,0.00013698,2]
[360811420,1747035044473,-336.26,0.00013698,2]
[360811421,1747035044483,-963.99,0.00013698,2]
[360811422,1747035044493,-963.99,0.00013698,2]
[360811423,1747035044503,-963.99,0.00013698,2]
[360811424,1747035044516,-963.99,0.00013698,2]
[360811425,1747035044526,-963.99,0.00013698,2]
[360811426,1747035044536,-400.0,0.00013698,2]
[360811427,1747035044546,-963.99,0.00013698,2]
[360811428,1747035044556,-400.0,0.00013698,2]
[360811429,1747035044565,-400.0,0.00013698,2]
[360811430,1747035044574,-963.99,0.00013698,2]
[360811431,1747035044585,-963.99,0.00013698,2]
[360811432,1747035044595,-963.99,0.00013698,2]
[360811433,1747035044604,-963.99,0.00013698,2]
[360811434,1747035044614,-963.99,0.00013698,2]
[360811435,1747035044624,-963.99,0.00013698,2]
[360811436,1747035044634,-400.0,0.00013698,2]
[360811437,1747035044643,-963.99,0.00013698,2]
[360811438,1747035044653,-963.99,0.00013698,2]
[360811439,1747035044663,-963.99,0.00013698,2]
[360811440,1747035044672,-400.0,0.00013698,2]
[360811441,1747035044682,-963.99,0.00013698,2]
[360811442,1747035044691,-963.99,0.00013698,2]
[360811443,1747035044701,-963.99,0.00013698,2]
[360811444,1747035044711,-963.99,0.00013698,2]
[360811445,1747035044721,-400.0,0.00013698,2]
[360811446,1747035044731,-963.99,0.00013698,2]
[360811447,1747035044740,-963.99,0.00013698,2]
[360811448,1747035044750,-964.00688007,0.00013698,2]
[360811449,1747035044762,-501.42,0.00013698,2]
[360811450,1747035044772,-400.0,0.00013698,2]
[360811451,1747035044784,-400.0,0.00013698,2]
[360811452,1747035044794,-400.0,0.00013698,2]
[360811453,1747035044803,-167.04660577,0.00013698,2]
[360811454,1747035044814,-400.0,0.00013698,2]
[360811455,1747035044823,-526.05436823,0.00013698,2]
[360811456,1747035044833,-400.0,0.00013698,2]
[360811457,1747035044843,-400.0,0.00013698,2]
[360811458,1747035044854,-411.36,0.00013698,2]
[360811459,1747035044864,-411.36,0.00013698,2]
[360811460,1747035044873,-411.36,0.00013698,2]
[360811461,1747035044883,-411.36,0.00013698,2]
[360811462,1747035044892,-411.36,0.00013698,2]
[360811463,1747035044902,-411.36,0.00013698,2]
[360811464,1747035044912,-411.36,0.00013698,2]
[360811465,1747035044921,-411.36,0.00013698,2]
[360811466,1747035044930,-400.0,0.00013698,2]
[360811467,1747035044940,-411.36,0.00013698,2]
[360811468,1747035044949,-411.36,0.00013698,2]
[360811469,1747035044959,-411.36,0.00013698,2]
[360811470,1747035044969,-411.36,0.00013698,2]
[360811471,1747035044978,-411.36,0.00013698,2]
[360811472,1747035044989,-411.36,0.00013698,2]
[360811473,1747035044998,-411.36,0.00013698,2]
[360811474,1747035045007,-411.36,0.00013698,2]
[360811475,1747035045019,-411.36,0.00013698,2]
[360811476,1747035045029,-411.36,0.00013698,2]
[360811477,1747035045038,-411.36,0.00013698,2]
[360811478,1747035045048,-400.0,0.00013698,2]
[360811479,1747035045058,-411.36,0.00013698,2]
[360811480,1747035045067,-411.36,0.00013698,2]
[360811481,1747035045076,-411.36,0.00013698,2]
[360811482,1747035045086,-411.36,0.00013698,2]
[360811483,1747035045095,-411.5107733,0.00013698,2]
[360811484,1747035045104,-400.0,0.00013698,2]
[360811485,1747035045114,-400.0,0.00013698,2]
[360811486,1747035045125,-400.0,0.00013698,2]
[360811487,1747035045136,-400.0,0.00013698,2]
[360811488,1747035045146,-400.0,0.00013698,2]
[360811489,1747035045156,-400.0,0.00013698,2]
[360811490,1747035045165,-400.0,0.00013698,2]
[360811491,1747035045175,-190.20569438,0.00013698,2]
[360811492,1747035045184,-151.0,0.00013698,2]
[360811493,1747035045194,-400.0,0.00013698,2]
[360811494,1747035045203,-153.58,0.00013698,2]
[360811495,1747035045213,-414.58067416,0.00013698,2]
[360811496,1747035045223,-400.0,0.00013698,2]
[360811497,1747035045232,-400.0,0.00013698,2]
[360811498,1747035045243,-583.52,0.00013698,2]
[360811499,1747035045253,-583.52,0.00013698,2]
[360811500,1747035045266,-583.52,0.00013698,2]
[360811501,1747035045276,-583.52,0.00013698,2]
[360811502,1747035045285,-583.52,0.00013698,2]
[360811503,1747035045295,-583.52,0.00013698,2]
[360811504,1747035045305,-583.52,0.00013698,2]
[360811505,1747035045315,-583.52,0.00013698,2]
[360811506,1747035045324,-583.52,0.00013698,2]
[360811507,1747035045334,-583.52,0.00013698,2]
[360811508,1747035045343,-583.52,0.00013698,2]
[360811509,1747035045353,-583.52,0.00013698,2]
[360811510,1747035045362,-583.52,0.00013698,2]
[360811511,1747035045372,-583.52,0.00013698,2]
[360811512,1747035045381,-583.52,0.00013698,2]
[360811513,1747035045391,-400.0,0.00013698,2]
[360811514,1747035045400,-583.52,0.00013698,2]
[360811515,1747035045410,-583.52,0.00013698,2]
[360811516,1747035045420,-583.52,0.00013698,2]
[360811517,1747035045430,-583.52,0.00013698,2]
[360811518,1747035045440,-583.52,0.00013698,2]
[360811519,1747035045450,-583.52,0.00013698,2]
[360811520,1747035045460,-400.0,0.00013698,2]
[360811521,1747035045470,-583.52,0.00013698,2]
[360811522,1747035045479,-583.52,0.00013698,2]
[360811523,1747035045489,-583.72075148,0.00013698,2]
[360811524,1747035045499,-400.0,0.00013698,2]
[360811525,1747035045512,-400.0,0.00013698,2]
[360811526,1747035045522,-500.0,0.00013698,2]
[360811527,1747035045531,-400.0,0.00013698,2]
[360811528,1747035045541,-562.69,0.00013698,2]
[360811529,1747035045551,-400.0,0.00013698,2]
[360811530,1747035045561,-562.69,0.00013698,2]
[360811531,1747035045571,-562.69,0.00013698,2]
[360811532,1747035045580,-562.69,0.00013698,2]
[360811533,1747035045590,-562.69,0.00013698,2]
[360811534,1747035045600,-562.69,0.00013698,2]
[360811535,1747035045609,-562.69,0.00013698,2]
[360811536,1747035045619,-562.69,0.00013698,2]
[360811537,1747035045628,-400.0,0.00013698,2]
[360811538,1747035045779,-562.69,0.00013698,2]
[360811539,1747035045813,-547.14,0.00013698,2]
[360811540,1747035045824,-562.69,0.00013698,2]
[360811541,1747035045833,-547.14,0.00013698,2]
[360811542,1747035045845,-562.69,0.00013698,2]
[360811543,1747035045854,-547.14,0.00013698,2]
[360811544,1747035045864,-562.69,0.00013698,2]
[360811545,1747035045874,-400.0,0.00013698,2]
[360811546,1747035045883,-562.69,0.00013698,2]
[360811547,1747035045893,-547.14,0.00013698,2]
[360811548,1747035045903,-562.69,0.00013698,2]
[360811549,1747035045912,-547.14,0.00013698,2]
[360811550,1747035045922,-562.69,0.00013698,2]
[360811551,1747035045932,-547.14,0.00013698,2]
[360811552,1747035045942,-562.69,0.00013698,2]
[360811553,1747035045951,-400.0,0.00013698,2]
[360811554,1747035045960,-547.14,0.00013698,2]
[360811555,1747035045970,-562.69,0.00013698,2]
[360811556,1747035045980,-547.14,0.00013698,2]
[360811558,1747035045991,-562.69,0.00013698,2]
[360811559,1747035046001,-547.14,0.00013698,2]
[360811560,1747035046013,-562.69,0.00013698,2]
[360811561,1747035046023,-547.14,0.00013698,2]
[360811562,1747035046033,-562.69,0.00013698,2]
[360811563,1747035046042,-547.14,0.00013698,2]
[360811565,1747035046052,-562.69,0.00013698,2]
[360811566,1747035046061,-547.14,0.00013698,2]
[360811567,1747035046071,-562.69,0.00013698,2]
[360811568,1747035046080,-547.14,0.00013698,2]
[360811569,1747035046090,-562.69,0.00013698,2]
[360811570,1747035046100,-562.91481401,0.00013698,2]
[360811571,1747035046109,-547.14,0.00013698,2]
[360811573,1747035046119,-547.14,0.00013698,2]
[360811575,1747035046128,-547.14,0.00013698,2]
[360811577,1747035046139,-547.14,0.00013698,2]
[360811579,1747035046148,-547.14,0.00013698,2]
[360811581,1747035046158,-547.14,0.00013698,2]
[360811583,1747035046167,-547.14,0.00013698,2]
[360811585,1747035046177,-400.0,0.00013698,2]
[360811587,1747035046187,-698.81,0.00013698,2]
[360811590,1747035046196,-547.14,0.00013698,2]
[360811594,1747035046206,-400.0,0.00013698,2]
[360811596,1747035046215,-547.14,0.00013698,2]
[360811599,1747035046224,-547.14,0.00013698,2]
[360811602,1747035046234,-698.81,0.00013698,2]
[360811604,1747035046243,-547.28586775,0.00013698,2]
[360811605,1747035046253,-698.81,0.00013698,2]
[360811606,1747035046266,-698.81,0.00013698,2]
[360811607,1747035046275,-698.81,0.00013698,2]
[360811609,1747035046284,-698.81,0.00013698,2]
[360811611,1747035046294,-698.81,0.00013698,2]
[360811613,1747035046304,-400.0,0.00013698,2]
[360811614,1747035046314,-698.81,0.00013698,2]
[360811615,1747035046324,-400.0,0.00013698,2]
[360811616,1747035046335,-698.81,0.00013698,2]
[360811617,1747035046344,-400.0,0.00013698,2]
[360811618,1747035046354,-400.0,0.00013698,2]
[360811619,1747035046364,-698.81,0.00013698,2]
[360811620,1747035046374,-400.0,0.00013698,2]
[360811621,1747035046383,-532.88,0.00013698,2]
[360811622,1747035046393,-698.81,0.00013698,2]
[360811623,1747035046403,-698.81,0.00013698,2]
[360811624,1747035046413,-698.81,0.00013698,2]
[360811626,1747035046424,-400.0,0.00013698,2]
[360811627,1747035046434,-698.81,0.00013698,2]
[360811628,1747035046444,-698.81,0.00013698,2]
[360811629,1747035046453,-698.81,0.00013698,2]
[360811630,1747035046463,-698.81,0.00013698,2]
[360811631,1747035046473,-698.81,0.00013698,2]
[360811632,1747035046483,-400.0,0.00013698,2]
[360811633,1747035046492,-698.81,0.00013698,2]
[360811634,1747035046502,-400.0,0.00013698,2]
[360811635,1747035046516,-698.81,0.00013698,2]
[360811636,1747035046525,-400.0,0.00013698,2]
[360811637,1747035046535,-400.0,0.00013698,2]
[360811638,1747035046545,-698.81,0.00013698,2]
[360811639,1747035046555,-400.0,0.00013698,2]
[360811640,1747035046565,-698.81,0.00013698,2]
[360811641,1747035046575,-400.0,0.00013698,2]
[360811642,1747035046585,-698.81,0.00013698,2]
[360811643,1747035046595,-400.0,0.00013698,2]
[360811644,1747035046606,-699.02679327,0.00013698,2]
[360811645,1747035046615,-400.0,0.00013698,2]
[360811646,1747035046625,-394.4,0.00013698,2]
[360811647,1747035046635,-400.0,0.00013698,2]
[360811648,1747035046645,-400.0,0.00013698,2]
[360811649,1747035046655,-400.0,0.00013698,2]
[360811650,1747035046665,-400.0,0.00013698,2]
[360811651,1747035046675,-400.0,0.00013698,2]
[360811652,1747035046686,-400.0,0.00013698,2]
[360811653,1747035046696,-671.55,0.00013698,2]
[360811654,1747035046706,-192.01,0.00013698,2]
[360811655,1747035046717,-400.0,0.00013698,2]
[360811657,1747035046727,-671.55,0.00013698,2]
[360811659,1747035046738,-400.0,0.00013698,2]
[360811661,1747035046748,-671.55,0.00013698,2]
[360811663,1747035046759,-400.0,0.00013698,2]
[360811665,1747035046777,-671.55,0.00013698,2]
[360811667,1747035046788,-400.0,0.00013698,2]
[360811669,1747035046798,-671.55,0.00013698,2]
[360811671,1747035046808,-400.0,0.00013698,2]
[360811673,1747035046818,-671.55,0.00013698,2]
[360811676,1747035046827,-400.0,0.00013698,2]
[360811677,1747035046837,-671.55,0.00013698,2]
[360811680,1747035046847,-400.0,0.00013698,2]
[360811682,1747035046858,-671.55,0.00013698,2]
[360811683,1747035046868,-400.0,0.00013698,2]
[360811685,1747035046877,-671.55,0.00013698,2]
[360811688,1747035046887,-400.0,0.00013698,2]
[360811689,1747035046897,-400.0,0.00013698,2]
[360811691,1747035046906,-671.55,0.00013698,2]
[360811694,1747035046916,-671.55,0.00013698,2]
[360811695,1747035046925,-400.0,0.00013698,2]
[360811696,1747035046935,-671.55,0.00013698,2]
[360811697,1747035046946,-400.0,0.00013698,2]
[360811698,1747035046955,-671.55,0.00013698,2]
[360811699,1747035046964,-182.22,0.00013698,2]
[360811700,1747035046974,-671.55,0.00013698,2]
[360811701,1747035046983,-671.55,0.00013698,2]
[360811702,1747035046993,-671.55,0.00013698,2]
[360811703,1747035047003,-671.55,0.00013698,2]
[360811704,1747035047016,-671.55,0.00013698,2]
[360811705,1747035047025,-400.0,0.00013698,2]
[360811707,1747035047035,-671.55,0.00013698,2]
[360811709,1747035047045,-671.55,0.00013698,2]
[360811710,1747035047055,-671.55,0.00013698,2]
[360811712,1747035047065,-671.55,0.00013698,2]
[360811713,1747035047075,-671.55,0.00013698,2]
[360811714,1747035047085,-671.63,0.00013698,2]
[360811716,1747035047095,-544.52,0.00013698,2]
[360811717,1747035047104,-1719.21,0.00013698,2]
[360811719,1747035047114,-1719.21,0.00013698,2]
[360811720,1747035047123,-400.0,0.00013698,2]
[360811721,1747035047132,-1719.21,0.00013698,2]
[360811722,1747035047142,-400.0,0.00013698,2]
[360811723,1747035047151,-1719.21,0.00013698,2]
[360811724,1747035047161,-1719.21,0.00013698,2]
[360811725,1747035047171,-400.0,0.00013698,2]
[360811727,1747035047181,-1719.21,0.00013698,2]
[360811728,1747035047191,-1719.21,0.00013698,2]
[360811729,1747035047200,-400.0,0.00013698,2]
[360811730,1747035047210,-1719.21,0.00013698,2]
[360811731,1747035047219,-1719.21,0.00013698,2]
[360811732,1747035047229,-400.0,0.00013698,2]
[360811733,1747035047239,-1719.21,0.00013698,2]
[360811734,1747035047248,-321.52,0.00013698,2]
[360811735,1747035047258,-1719.21,0.00013698,2]
[360811736,1747035047273,-1719.21,0.00013698,2]
[360811737,1747035047283,-1719.21,0.00013698,2]
[360811738,1747035047293,-1719.21,0.00013698,2]
[360811739,1747035047304,-1719.21,0.00013698,2]
[360811740,1747035047314,-1719.21,0.00013698,2]
[360811741,1747035047325,-1719.21,0.00013698,2]
[360811742,1747035047335,-1719.21,0.00013698,2]
[360811743,1747035047345,-1148.115523,0.00013698,2]
[360811744,1747035047832,-571.094477,0.00013698,2]
[360811745,1747035047842,-86.866383,0.00013698,2]
[360811746,1747035047869,-351.0486,0.00013698,2]
[360811747,1747035047882,-1281.295017,0.00013698,2]
[360811748,1747035047892,-400.0,0.00013698,2]
[360811749,1747035047901,-1719.21,0.00013698,2]
[360811750,1747035047911,-1102.63545361,0.00013698,2]
[360811751,1747035047924,-616.57454639,0.00013698,2]
[360811752,1747035047933,-1719.21,0.00013698,2]
[360811753,1747035047943,-539.05727827,0.00013698,2]
[360811754,1747035047952,-1719.42039256,0.00013698,2]
[360811755,1747035047962,-400.0,0.00013698,2]
[360811756,1747035047972,-1687.19,0.00013698,2]
[360811757,1747035047981,-1246.68653357,0.00013698,2]
[360811758,1747035048102,-57.30039701,0.00013698,2]
[360811759,1747035048134,-383.20306942,0.00013698,2]
[360811760,1747035048143,-550.16157002,0.00013698,2]
[360811761,1747035048156,-1137.02842998,0.00013698,2]
[360811762,1747035048166,-1687.19,0.00013698,2]
[360811763,1747035048176,-1687.19,0.00013698,2]
[360811764,1747035048186,-459.71156998,0.00013698,2]
[360811765,1747035048199,-1227.47843002,0.00013698,2]
[360811766,1747035048209,-1687.19,0.00013698,2]
[360811767,1747035048219,-180.62873928,0.00013698,2]
[360811768,1747035048282,-395.5312524,0.00013698,2]
[360811769,1747035049567,-1304.0,0.00013577,2]
[360811770,1747035049578,-934.8,0.00013698,2]
[360811771,1747035049590,-176.23000832,0.00013698,2]
[360811772,1747035049599,-667.16999168,0.00013698,2]
[360811773,1747035049611,-498.84,0.00013698,2]
[360811774,1747035049623,-521.18000832,0.00013698,2]
[360811775,1747035049633,-678.27420258,0.00013698,2]
[360811776,1747035049645,-1008.91579742,0.00013698,2]
[360811777,1747035049655,-1687.19,0.00013698,2]
[360811778,1747035049666,-1687.19,0.00013698,2]
[360811779,1747035049676,-1687.19,0.00013698,2]
[360811780,1747035049686,-437.97314417,0.00013698,2]
[360811781,1747035049698,-1249.21685583,0.00013698,2]
[360811782,1747035049708,-1174.08314117,0.00013698,2]
[360811783,1747035049720,-513.10685883,0.00013698,2]
[360811784,1747035049729,-1687.19,0.00013698,2]
[360811785,1747035049740,-1687.19,0.00013698,2]
[360811786,1747035049751,-1061.16314117,0.00013698,2]
[360811787,1747035049770,-626.02685883,0.00013698,2]
[360811788,1747035049779,-164.23053074,0.00013698,2]
[360811789,1747035049792,-1522.95946926,0.00013698,2]
[360811790,1747035049803,-784.34304123,0.00013698,2]
[360811791,1747035049815,-902.84695877,0.00013698,2]
[360811792,1747035049824,-623.61472066,0.00013698,2]
[360811793,1747035049836,-1063.57527934,0.00013698,2]
[360811794,1747035049846,-1687.19,0.00013698,2]
[360811795,1747035049857,-1687.19,0.00013698,2]
[360811796,1747035049867,-1687.25191459,0.00013698,2]
[360811797,1747035049878,-4154.12,0.00013698,2]
[360811798,1747035049888,-4154.12,0.00013698,2]
[360811799,1747035049898,-4154.12,0.00013698,2]
[360811800,1747035049907,-4154.12,0.00013698,2]
[360811801,1747035049918,-4154.12,0.00013698,2]
[360811802,1747035049931,-4154.12,0.00013698,2]
[360811803,1747035049941,-4154.12,0.00013698,2]
[360811804,1747035049951,-4154.12,0.00013698,2]
[360811805,1747035049961,-4154.12,0.00013698,2]
[360811806,1747035049971,-4154.12,0.00013698,2]
[360811807,1747035049981,-4154.12,0.00013698,2]
[360811808,1747035049990,-4154.12,0.00013698,2]
[360811809,1747035050000,-4154.12,0.00013698,2]
[360811810,1747035050010,-1883.04880607,0.00013698,2]
[360811811,1747035050028,-2271.07119393,0.00013698,2]
[360811812,1747035050038,-899.46621866,0.00013698,2]
[360811813,1747035050233,-1039.2632,0.00013698,2]
[360811814,1747035050246,-2215.39058134,0.00013698,2]
[360811815,1747035050255,-4154.12,0.00013698,2]
[360811816,1747035050266,-4154.12,0.00013698,2]
[360811817,1747035050275,-4154.12,0.00013698,2]
[360811818,1747035050285,-400.0,0.00013698,2]
[360811819,1747035050295,-4154.12,0.00013698,2]
[360811820,1747035050304,-4154.12,0.00013698,2]
[360811821,1747035050314,-400.0,0.00013698,2]
[360811822,1747035050323,-4154.12,0.00013698,2]
[360811823,1747035050333,-4154.12,0.00013698,2]
[360811824,1747035050343,-4154.12,0.00013698,2]
[360811825,1747035050353,-4154.20176842,0.00013698,2]
[360811826,1747035050363,-400.0,0.00013698,2]
[360811827,1747035050372,-549.97,0.00013698,2]
[360811828,1747035050382,-549.97,0.00013698,2]
[360811829,1747035050392,-549.97,0.00013698,2]
[360811830,1747035050401,-412.83268355,0.00013698,2]
[360811831,1747035050411,-549.97,0.00013698,2]
[360811832,1747035050421,-549.97,0.00013698,2]
[360811833,1747035050431,-549.97,0.00013698,2]
[360811834,1747035050440,-549.97,0.00013698,2]
[360811835,1747035050450,-549.97,0.00013698,2]
[360811836,1747035050459,-549.97,0.00013698,2]
[360811837,1747035050469,-400.0,0.00013698,2]
[360811838,1747035050478,-549.97,0.00013698,2]
[360811839,1747035050488,-400.0,0.00013698,2]
[360811840,1747035050498,-549.97,0.00013698,2]
[360811841,1747035050507,-400.0,0.00013698,2]
[360811842,1747035050520,-549.97,0.00013698,2]
[360811843,1747035050529,-400.0,0.00013698,2]
[360811844,1747035050539,-549.97,0.00013698,2]
[360811845,1747035050548,-379.88,0.00013698,2]
[360811846,1747035050558,-549.97,0.00013698,2]
[360811847,1747035050568,-549.97,0.00013698,2]
[360811848,1747035050577,-549.97,0.00013698,2]
[360811849,1747035050587,-549.97,0.00013698,2]
[360811850,1747035050596,-549.97,0.00013698,2]
[360811851,1747035050606,-549.97,0.00013698,2]
[360811852,1747035050615,-549.97,0.00013698,2]
[360811853,1747035050625,-549.97,0.00013698,2]
[360811854,1747035050634,-549.97,0.00013698,2]
[360811855,1747035050644,-549.97,0.00013698,2]
[360811856,1747035050654,-550.0478485,0.00013698,2]
[360811857,1747035050664,-2292.7,0.00013698,2]
[360811858,1747035050673,-2292.7,0.00013698,2]
[360811859,1747035050683,-2292.7,0.00013698,2]
[360811860,1747035050693,-2292.7,0.00013698,2]
[360811861,1747035050703,-2292.7,0.00013698,2]
[360811862,1747035050713,-2292.7,0.00013698,2]
[360811863,1747035050723,-2292.7,0.00013698,2]
[360811864,1747035050732,-2292.7,0.00013698,2]
[360811865,1747035050742,-2292.7,0.00013698,2]
[360811866,1747035050751,-381.40386519,0.00013698,2]
[360811867,1747035050881,-1911.29613481,0.00013698,2]
[360811868,1747035050890,-666.90386521,0.00013698,2]
[360811869,1747035050919,-316.2885326,0.00013698,2]
[360811870,1747035050937,-539.14825921,0.00013698,2]
[360811871,1747035050950,-770.35934298,0.00013698,2]
[360811872,1747035050961,-1381.73272186,0.00013698,2]
[360811873,1747035072177,2400.0,0.000137,5]
[360811874,1747035074300,400.0,0.000138,5]
[360811875,1747035076420,400.0,0.000139,5]
[360811876,1747035130682,204.35876349,0.00028,120]
[360811877,1747035133376,150.0,0.00028,120]
[360811878,1747035190627,172.09190289,0.00028,120]
[360811879,1747035192118,150.0,0.00028,120]
[360811880,1747035196069,188.64928782,0.00028,120]
[360811881,1747035196882,500.0,0.00028,120]
[360811882,1747035293141,300.0,0.000137,5]
[360811883,1747035295254,300.0,0.000138,5]
[360811884,1747035297383,300.0,0.000139,5]
[360811885,1747035505646,-264.06,0.00012555,2]
[360811886,1747035581686,-234.46111386,0.00012555,2]
[360811887,1747035588236,-211.81888614,0.00012555,2]
[360811888,1747035602739,-261.32417383,0.00012547,2]
[360811889,1747035636362,555.92,0.00010694,2]
[360811890,1747035719175,1200.0,0.000137,5]
[360811891,1747035721311,1200.0,0.000138,5]
[360811892,1747035723976,1200.0,0.000139,5]
[360811893,1747035809390,316.15353,0.00028,120]
[360811894,1747035872728,-245.78,0.00012561,2]
[360811895,1747035872751,-6.90798958,0.00012562,2]
[360811897,1747035888287,-180.42684345,0.00012561,2]
[360811898,1747035904258,-300.0,0.0001256,2]
[360811899,1747035904283,-238.23859776,0.0001256,2]
[360811900,1747035917661,-416.36168994,0.0001256,2]
[360811901,1747035932632,-321.34430512,0.0001256,2]
[360811902,1747035944102,1000.0,0.00012201,2]
[360811903,1747035948159,-224.05540718,0.0001256,2]
[360811904,1747035948182,-57.57466687,0.0001256,2]
[360811905,1747035953031,634.56,0.0001221,2]
[360811906,1747035962602,-92.42533313,0.0001256,2]
[360811907,1747035962627,-202.23859059,0.0001256,2]
[360811908,1747035977575,-97.76140941,0.0001256,2]
[360811909,1747035977599,-125.82385314,0.0001256,2]
[360811910,1747035990330,1777.04152669,0.00012206,2]
[360811911,1747035990354,3990.66653946,0.00012206,2]
[360811912,1747035990379,3990.66653946,0.00012206,2]
[360811913,1747035990401,3990.66653946,0.00012206,2]
[360811914,1747035990424,3990.66653946,0.00012206,2]
[360811915,1747035990446,3990.66653946,0.00012206,2]
[360811916,1747035990474,6116.83577601,0.00012206,2]
[360811917,1747035992622,-174.17614686,0.0001256,2]
[360811918,1747035992645,-159.63395815,0.00012561,2]
[360811919,1747035992727,-116.18989499,0.00012561,2]
[360811920,1747036008291,-152.0,0.0001256,2]
[360811921,1747036023474,-300.0,0.00012559,2]
[360811922,1747036037695,-68.11384359,0.0001256,2]
[360811923,1747036037719,-98.4696365,0.0001256,2]
[360811924,1747036047051,150.0,0.00013699,7]
[360811925,1747036053522,1700.0,0.000137,5]
[360811926,1747036055631,1700.0,0.000138,5]
[360811927,1747036057769,1700.0,0.000139,5]
[360811928,1747036059079,212.18,0.00012217,2]
[360811929,1747036082232,-274.40376166,0.00012559,2]
[360811930,1747036097697,-25.59623834,0.00012559,2]
[360811931,1747036097724,-150.0,0.00012559,2]
[360811932,1747036101232,3378.78,0.00012217,2]
[360811933,1747036110478,8907.91836,0.00028,120]
[360811934,1747036143240,-180.30363672,0.00012558,2]